fUST/lending_fUST_20250729
["ID","MTS","AMOUNT","RATE_DAILY","PERIOD"]
[375737066,1753726255893,-460.0,0.00020547,2]
[375737068,1753726255902,-460.0,0.00020547,2]
[375737070,1753726255911,-897.76,0.00020547,2]
[375737072,1753726255920,-2047.29,0.00020547,2]
[375737073,1753726255929,-3008.21,0.00020547,2]
[375737075,1753726255938,-747.06,0.00020547,2]
[375737077,1753726255947,-617.68,0.00020547,2]
[375737079,1753726255956,-3254.09,0.00020547,2]
[375737081,1753726255965,-971.02,0.00020547,2]
[375737083,1753726255974,-460.0,0.00020547,2]
[375737085,1753726255983,-1422.43,0.00020547,2]
[375737087,1753726255992,-460.0,0.00020547,2]
[375737089,1753726256001,-2471.61,0.00020547,2]
[375737091,1753726256011,-460.0,0.00020547,2]
[375737093,1753726256019,-460.0,0.00020547,2]
[375737095,1753726256029,-540.49,0.00020547,2]
[375737097,1753726256038,-460.0,0.00020547,2]
[375737099,1753726256047,-460.0,0.00020547,2]
[375737101,1753726256056,-460.0,0.00020547,2]
[375737103,1753726256065,-180.11677036,0.00020547,2]
[375737105,1753726256074,-460.0,0.00020547,2]
[375737107,1753726256083,-463.43,0.00020547,2]
[375737109,1753726256092,-473.84,0.00020547,2]
[375737111,1753726256103,-3735.85,0.00020547,2]
[375737113,1753726256112,-460.0,0.00020547,2]
[375737115,1753726256122,-580.94724231,0.00020547,2]
[375737117,1753726256132,-2049.2,0.00020547,2]
[375737119,1753726256142,-460.0,0.00020547,2]
[375737121,1753726256151,-749.47,0.00020547,2]
[375737123,1753726256161,-460.0,0.00020547,2]
[375737125,1753726256171,-460.0,0.00020547,2]
[375737127,1753726256181,-561.15,0.00020547,2]
[375737129,1753726256190,-460.0,0.00020547,2]
[375737131,1753726256200,-460.0,0.00020547,2]
[375737133,1753726256210,-483.3,0.00020547,2]
[375737135,1753726256219,-469.32,0.00020547,2]
[375737137,1753726256229,-582.39,0.00020547,2]
[375737139,1753726256238,-2177.28,0.00020547,2]
[375737141,1753726256247,-481.16,0.00020547,2]
[375737143,1753726256256,-940.82,0.00020547,2]
[375737145,1753726256266,-460.0,0.00020547,2]
[375737147,1753726256275,-460.0,0.00020547,2]
[375737149,1753726256284,-580.31,0.00020547,2]
[375737151,1753726256293,-460.0,0.00020547,2]
[375737153,1753726256303,-712.61,0.00020547,2]
[375737155,1753726256315,-497.89,0.00020547,2]
[375737157,1753726256324,-1532.04,0.00020547,2]
[375737159,1753726256334,-476.16,0.00020547,2]
[375737161,1753726256343,-460.0,0.00020547,2]
[375737163,1753726256355,-902.89,0.00020547,2]
[375737165,1753726256364,-2112.95,0.00020547,2]
[375737167,1753726256372,-2156.68,0.00020547,2]
[375737169,1753726256382,-460.0,0.00020547,2]
[375737171,1753726256393,-460.0,0.00020547,2]
[375737173,1753726256402,-460.0,0.00020547,2]
[375737175,1753726256412,-460.0,0.00020547,2]
[375737177,1753726256421,-1000.0,0.00020568,2]
[375737179,1753726256430,-300.0,0.00020679,2]
[375737180,1753726256439,-300.0,0.00020679,2]
[375737182,1753726256448,-228.0,0.00020679,2]
[375737184,1753726256457,-300.0,0.00020679,2]
[375737186,1753726256466,-420.0,0.00020679,2]
[375737188,1753726256476,-991.2,0.00020733,3]
[375737190,1753726256485,-363.0,0.00020778,2]
[375737192,1753726256495,-460.0,0.00020821,2]
[375737194,1753726256505,-460.0,0.00020821,2]
[375737196,1753726256514,-460.0,0.00020821,2]
[375737198,1753726256523,-460.0,0.00020821,2]
[375737200,1753726256533,-460.0,0.00020821,2]
[375737202,1753726256542,-460.0,0.00020821,2]
[375737204,1753726256551,-725.53,0.00020821,2]
[375737206,1753726256561,-624.72,0.00020821,2]
[375737208,1753726256570,-7756.03,0.00020821,2]
[375737210,1753726256581,-457.43506182,0.00020821,2]
[375737212,1753726256590,-178.560559,0.00020821,2]
[375737214,1753726256600,-460.0,0.00020821,2]
[375737216,1753726256609,-1428.52,0.00020821,2]
[375737218,1753726256618,-460.0,0.00020821,2]
[375737220,1753726256627,-460.0,0.00020821,2]
[375737222,1753726256637,-460.0,0.00020821,2]
[375737224,1753726256646,-460.0,0.00020821,2]
[375737226,1753726256655,-552.26,0.00020821,2]
[375737228,1753726256665,-460.0,0.00020821,2]
[375737230,1753726256674,-761.77,0.00020821,2]
[375737232,1753726256683,-460.0,0.00020821,2]
[375737234,1753726256693,-491.55,0.00020821,2]
[375737236,1753726256703,-460.0,0.00020821,2]
[375737238,1753726256713,-1843.09,0.00020821,2]
[375737240,1753726256722,-460.0,0.00020821,2]
[375737242,1753726256731,-460.0,0.00020821,2]
[375737244,1753726256740,-460.0,0.00020821,2]
[375737246,1753726256749,-460.0,0.00020821,2]
[375737248,1753726256759,-460.0,0.00020821,2]
[375737250,1753726256768,-716.08,0.00020821,2]
[375737252,1753726256777,-595.94,0.00020821,2]
[375737254,1753726256787,-237.70725239,0.00020821,2]
[375737256,1753726256796,-460.0,0.00020821,2]
[375737258,1753726256806,-460.0,0.00020821,2]
[375737260,1753726256815,-460.0,0.00020821,2]
[375737262,1753726256824,-460.0,0.00020821,2]
[375737264,1753726256833,-460.0,0.00020821,2]
[375737266,1753726256842,-4965.97,0.00020821,2]
[375737268,1753726256853,-617.58,0.00020821,2]
[375737270,1753726256862,-460.0,0.00020821,2]
[375737272,1753726256871,-460.0,0.00020821,2]
[375737274,1753726256880,-897.76,0.00020821,2]
[375737276,1753726256888,-2047.29,0.00020821,2]
[375737278,1753726256898,-3008.21,0.00020821,2]
[375737280,1753726256907,-747.06,0.00020821,2]
[375737282,1753726256916,-617.68,0.00020821,2]
[375737284,1753726256926,-3254.09,0.00020821,2]
[375737286,1753726256935,-971.02,0.00020821,2]
[375737288,1753726256945,-460.0,0.00020821,2]
[375737290,1753726256954,-1422.43,0.00020821,2]
[375737292,1753726256963,-460.0,0.00020821,2]
[375737294,1753726256973,-2471.61,0.00020821,2]
[375737296,1753726256982,-460.0,0.00020821,2]
[375737298,1753726256991,-460.0,0.00020821,2]
[375737300,1753726257001,-540.49,0.00020821,2]
[375737301,1753726257011,-228.82,0.00020821,2]
[375737303,1753726257020,-460.0,0.00020821,2]
[375737305,1753726257029,-223.41665866,0.00020821,2]
[375737307,1753726257038,-463.43,0.00020821,2]
[375737309,1753726257047,-473.84,0.00020821,2]
[375737311,1753726257057,-3735.85,0.00020821,2]
[375737313,1753726257066,-460.0,0.00020821,2]
[375737315,1753726257077,-2049.2,0.00020821,2]
[375737317,1753726257086,-460.0,0.00020821,2]
[375737319,1753726257096,-460.0,0.00020821,2]
[375737321,1753726257108,-749.47,0.00020821,2]
[375737323,1753726257118,-526.8,0.00020821,2]
[375737326,1753726257128,-561.15,0.00020821,2]
[375737328,1753726257137,-460.0,0.00020821,2]
[375737329,1753726257147,-460.0,0.00020821,2]
[375737331,1753726257156,-469.32,0.00020821,2]
[375737333,1753726257165,-483.3,0.00020821,2]
[375737335,1753726257174,-582.39,0.00020821,2]
[375737337,1753726257184,-2177.28,0.00020821,2]
[375737339,1753726257193,-481.16,0.00020821,2]
[375737341,1753726257202,-940.82,0.00020821,2]
[375737343,1753726257211,-460.0,0.00020821,2]
[375737346,1753726257221,-712.61,0.00020821,2]
[375737347,1753726257230,-580.31,0.00020821,2]
[375737349,1753726257239,-497.89,0.00020821,2]
[375737351,1753726257248,-1532.04,0.00020821,2]
[375737353,1753726257257,-476.16,0.00020821,2]
[375737355,1753726257267,-460.0,0.00020821,2]
[375737357,1753726257277,-902.89,0.00020821,2]
[375737359,1753726257286,-2112.95,0.00020821,2]
[375737362,1753726257296,-2156.68,0.00020821,2]
[375737363,1753726257306,-460.0,0.00020821,2]
[375737366,1753726257319,-460.0,0.00020821,2]
[375737368,1753726257329,-460.0,0.00020821,2]
[375737370,1753726257338,-212.32287949,0.00020868,2]
[375737372,1753726257347,-1500.0,0.00020868,2]
[375737374,1753726257358,-260.0,0.00020981,2]
[375737376,1753726257367,-25000.0,0.00020999,2]
[375737378,1753726257376,-151.0,0.00020999,2]
[375737379,1753726257385,-991.2,0.0002109,4]
[375737381,1753726257396,-460.0,0.00021095,2]
[375737383,1753726257406,-460.0,0.00021095,2]
[375737385,1753726257415,-460.0,0.00021095,2]
[375737387,1753726257424,-460.0,0.00021095,2]
[375737389,1753726257434,-725.53,0.00021095,2]
[375737391,1753726257443,-624.72,0.00021095,2]
[375737393,1753726257452,-7756.03,0.00021095,2]
[375737395,1753726257461,-460.0,0.00021095,2]
[375737397,1753726257470,-1428.52,0.00021095,2]
[375737399,1753726257479,-460.0,0.00021095,2]
[375737401,1753726257489,-460.0,0.00021095,2]
[375737403,1753726257499,-460.0,0.00021095,2]
[375737405,1753726257509,-460.0,0.00021095,2]
[375737407,1753726257518,-460.0,0.00021095,2]
[375737409,1753726257528,-761.77,0.00021095,2]
[375737411,1753726257537,-460.0,0.00021095,2]
[375737413,1753726257546,-491.55,0.00021095,2]
[375737415,1753726257555,-460.0,0.00021095,2]
[375737417,1753726257565,-1843.09,0.00021095,2]
[375737419,1753726257574,-460.0,0.00021095,2]
[375737421,1753726257583,-460.0,0.00021095,2]
[375737423,1753726257593,-460.0,0.00021095,2]
[375737425,1753726257604,-716.08,0.00021095,2]
[375737427,1753726257613,-595.94,0.00021095,2]
[375737429,1753726257623,-460.0,0.00021095,2]
[375737431,1753726257632,-460.0,0.00021095,2]
[375737433,1753726257641,-576.24077322,0.00021095,2]
[375737435,1753726257650,-460.0,0.00021095,2]
[375737437,1753726257659,-460.0,0.00021095,2]
[375737439,1753726257668,-4965.97,0.00021095,2]
[375737441,1753726257677,-617.58,0.00021095,2]
[375737443,1753726257686,-460.0,0.00021095,2]
[375737444,1753726257696,-460.0,0.00021095,2]
[375737447,1753726257705,-897.76,0.00021095,2]
[375737448,1753726257715,-2047.29,0.00021095,2]
[375737450,1753726257724,-3008.21,0.00021095,2]
[375737452,1753726257733,-747.06,0.00021095,2]
[375737454,1753726257743,-617.68,0.00021095,2]
[375737456,1753726257752,-3254.09,0.00021095,2]
[375737469,1753726257861,-971.02,0.00021095,2]
[375737471,1753726257872,-460.0,0.00021095,2]
[375737473,1753726257881,-1422.43,0.00021095,2]
[375737475,1753726257891,-460.0,0.00021095,2]
[375737477,1753726257900,-2471.61,0.00021095,2]
[375737479,1753726257909,-460.0,0.00021095,2]
[375737481,1753726257919,-460.0,0.00021095,2]
[375737483,1753726257928,-540.49,0.00021095,2]
[375737485,1753726257937,-463.43,0.00021095,2]
[375737487,1753726257947,-473.84,0.00021095,2]
[375737489,1753726257956,-3735.85,0.00021095,2]
[375737491,1753726257966,-2049.2,0.00021095,2]
[375737493,1753726257975,-460.0,0.00021095,2]
[375737495,1753726257984,-460.0,0.00021095,2]
[375737496,1753726257993,-460.0,0.00021095,2]
[375737498,1753726258002,-749.47,0.00021095,2]
[375737500,1753726258012,-561.15,0.00021095,2]
[375737503,1753726258021,-460.0,0.00021095,2]
[375737504,1753726258030,-460.0,0.00021095,2]
[375737506,1753726258040,-469.32,0.00021095,2]
[375737508,1753726258049,-483.3,0.00021095,2]
[375737510,1753726258058,-582.39,0.00021095,2]
[375737512,1753726258067,-2177.28,0.00021095,2]
[375737514,1753726258076,-481.16,0.00021095,2]
[375737517,1753726258086,-940.82,0.00021095,2]
[375737518,1753726258095,-460.0,0.00021095,2]
[375737521,1753726258107,-712.61,0.00021095,2]
[375737522,1753726258117,-580.31,0.00021095,2]
[375737524,1753726258127,-497.89,0.00021095,2]
[375737526,1753726258136,-1532.04,0.00021095,2]
[375737528,1753726258146,-476.16,0.00021095,2]
[375737530,1753726258156,-460.0,0.00021095,2]
[375737532,1753726258165,-902.89,0.00021095,2]
[375737534,1753726258174,-2112.95,0.00021095,2]
[375737536,1753726258183,-2156.68,0.00021095,2]
[375737538,1753726258193,-460.0,0.00021095,2]
[375737540,1753726258202,-200.0,0.00021249,15]
[375737542,1753726258211,-200.0,0.00021249,15]
[375737544,1753726258220,-200.0,0.00021249,15]
[375737546,1753726258230,-200.0,0.00021249,15]
[375737548,1753726258239,-320.0,0.00021249,15]
[375737550,1753726258248,-5041.81830749,0.00021269,2]
[375737552,1753726258259,-297.47172873,0.00021342,4]
[375737554,1753726258269,-742.0,0.00021354,2]
[375737556,1753726258278,-361.39395478,0.00021369,2]
[375737558,1753726258288,-460.0,0.00021369,2]
[375737560,1753726258297,-460.0,0.00021369,2]
[375737562,1753726258310,-725.53,0.00021369,2]
[375737564,1753726258321,-624.72,0.00021369,2]
[375737566,1753726258330,-7756.03,0.00021369,2]
[375737568,1753726258340,-460.0,0.00021369,2]
[375737570,1753726258352,-1428.52,0.00021369,2]
[375737572,1753726258361,-460.0,0.00021369,2]
[375737574,1753726258371,-460.0,0.00021369,2]
[375737576,1753726258381,-460.0,0.00021369,2]
[375737578,1753726258391,-761.77,0.00021369,2]
[375737580,1753726258400,-460.0,0.00021369,2]
[375737582,1753726258409,-491.55,0.00021369,2]
[375737584,1753726258419,-460.0,0.00021369,2]
[375737586,1753726258428,-1843.09,0.00021369,2]
[375737587,1753726258437,-460.0,0.00021369,2]
[375737589,1753726258447,-716.08,0.00021369,2]
[375737591,1753726258456,-595.94,0.00021369,2]
[375737593,1753726258466,-460.0,0.00021369,2]
[375737595,1753726258476,-460.0,0.00021369,2]
[375737597,1753726258485,-460.0,0.00021369,2]
[375737599,1753726258494,-460.0,0.00021369,2]
[375737601,1753726258503,-4965.97,0.00021369,2]
[375737603,1753726258513,-617.58,0.00021369,2]
[375737605,1753726258522,-460.0,0.00021369,2]
[375737607,1753726258532,-897.76,0.00021369,2]
[375737609,1753726258541,-2047.29,0.00021369,2]
[375737611,1753726258551,-3008.21,0.00021369,2]
[375737612,1753726258560,-747.06,0.00021369,2]
[375737614,1753726258569,-617.68,0.00021369,2]
[375737616,1753726258578,-3254.09,0.00021369,2]
[375737618,1753726258587,-971.02,0.00021369,2]
[375737619,1753726258597,-460.0,0.00021369,2]
[375737621,1753726258609,-1422.43,0.00021369,2]
[375737623,1753726258618,-460.0,0.00021369,2]
[375737625,1753726258627,-2471.61,0.00021369,2]
[375737626,1753726258637,-460.0,0.00021369,2]
[375737628,1753726258646,-460.0,0.00021369,2]
[375737630,1753726258655,-540.49,0.00021369,2]
[375737631,1753726258664,-463.43,0.00021369,2]
[375737633,1753726258673,-473.84,0.00021369,2]
[375737635,1753726258682,-3735.85,0.00021369,2]
[375737637,1753726258691,-2049.2,0.00021369,2]
[375737639,1753726258701,-460.0,0.00021369,2]
[375737640,1753726258710,-460.0,0.00021369,2]
[375737642,1753726258719,-749.47,0.00021369,2]
[375737644,1753726258729,-561.15,0.00021369,2]
[375737646,1753726258738,-460.0,0.00021369,2]
[375737647,1753726258747,-460.0,0.00021369,2]
[375737649,1753726258756,-469.32,0.00021369,2]
[375737651,1753726258765,-483.3,0.00021369,2]
[375737653,1753726258775,-582.39,0.00021369,2]
[375737654,1753726258784,-151.0,0.00021369,2]
[375737656,1753726258793,-2177.28,0.00021369,2]
[375737658,1753726258802,-940.82,0.00021369,2]
[375737660,1753726258812,-481.16,0.00021369,2]
[375737661,1753726258821,-460.0,0.00021369,2]
[375737663,1753726258830,-712.61,0.00021369,2]
[375737665,1753726258841,-580.31,0.00021369,2]
[375737666,1753726258852,-497.89,0.00021369,2]
[375737668,1753726258861,-1532.04,0.00021369,2]
[375737670,1753726258871,-476.16,0.00021369,2]
[375737672,1753726258880,-460.0,0.00021369,2]
[375737674,1753726258889,-902.89,0.00021369,2]
[375737675,1753726258899,-2112.95,0.00021369,2]
[375737677,1753726258909,-2156.68,0.00021369,2]
[375737679,1753726258919,-460.0,0.00021369,2]
[375737681,1753726258928,-151.0,0.0002137,2]
[375737682,1753726258938,-245.0,0.0002137,2]
[375737684,1753726258947,-151.0,0.0002137,2]
[375737686,1753726258956,-151.0,0.0002137,2]
[375737688,1753726258966,-151.0,0.0002137,2]
[375737690,1753726258976,-151.0,0.0002137,2]
[375737691,1753726258985,-500.0,0.0002137,2]
[375737693,1753726258994,-199.04713453,0.0002137,2]
[375737695,1753726259003,-151.0,0.0002137,2]
[375737696,1753726259012,-151.0,0.0002137,2]
[375737698,1753726259021,-151.0,0.0002137,2]
[375737700,1753726259030,-151.0,0.0002137,2]
[375737702,1753726259039,-272.38218103,0.0002137,2]
[375737704,1753726259048,-151.0,0.0002137,2]
[375737705,1753726259057,-151.0,0.0002137,2]
[375737707,1753726259066,-151.0,0.0002137,2]
[375737709,1753726259075,-151.0,0.0002137,2]
[375737710,1753726259084,-151.0,0.0002137,2]
[375737712,1753726259093,-151.0,0.0002137,2]
[375737714,1753726259103,-797.0,0.0002137,2]
[375737716,1753726259112,-151.0,0.0002137,2]
[375737718,1753726259121,-151.0,0.0002137,2]
[375737719,1753726259131,-151.0,0.0002137,2]
[375737721,1753726259140,-151.0,0.0002137,2]
[375737723,1753726259150,-742.0,0.0002139,2]
[375737725,1753726259159,-2086.43520721,0.000214,2]
[375737727,1753726259168,-2000.0,0.00021416,2]
[375737728,1753726259177,-991.2,0.00021446,4]
[375737730,1753726259187,-175.209476,0.000215,2]
[375737732,1753726259197,-151.398652,0.000215,2]
[375737734,1753726259206,-151.0,0.000215,2]
[375737736,1753726259216,-324.492934,0.000215,2]
[375737738,1753726259226,-324.492934,0.000215,2]
[375737740,1753726259235,-151.0,0.000215,2]
[375737741,1753726259244,-151.0,0.000215,2]
[375737743,1753726259254,-151.0,0.000215,2]
[375737745,1753726259263,-227.718071,0.000215,2]
[375737747,1753726259273,-356.094467,0.000215,2]
[375737748,1753726259282,-356.094467,0.000215,2]
[375737750,1753726259291,-859132.5,0.000215,2]
[375737752,1753726259300,-321.913702,0.000215,2]
[375737754,1753726259311,-321.913702,0.000215,2]
[375737756,1753726259322,-205.16957,0.000215,2]
[375737757,1753726259332,-205.16957,0.000215,2]
[375737759,1753726259341,-151.0,0.000215,2]
[375737761,1753726259352,-206.923113,0.000215,2]
[375737763,1753726259363,-502.63,0.000215,2]
[375737765,1753726259372,-151.0,0.000215,2]
[375737767,1753726259381,-151.0,0.000215,2]
[375737768,1753726259391,-151.0,0.000215,2]
[375737770,1753726259400,-151.0,0.000215,2]
[375737772,1753726259410,-151.0,0.000215,2]
[375737774,1753726259420,-151.0,0.000215,2]
[375737776,1753726259429,-151.0,0.000215,2]
[375737778,1753726259438,-151.0,0.000215,2]
[375737779,1753726259447,-380.79538,0.000215,2]
[375737781,1753726259457,-380.79538,0.000215,2]
[375737783,1753726259467,-151.0,0.000215,2]
[375737785,1753726259476,-151.0,0.000215,2]
[375737787,1753726259486,-256.70157,0.000215,2]
[375737789,1753726259495,-256.70157,0.000215,2]
[375737790,1753726259505,-625.761225,0.000215,2]
[375737792,1753726259514,-625.761225,0.000215,2]
[375737794,1753726259525,-151.0,0.000215,2]
[375737796,1753726259534,-151.0,0.000215,2]
[375737798,1753726259543,-151.0,0.000215,2]
[375737799,1753726259553,-742.0,0.00021518,2]
[375737801,1753726259562,-360.0,0.00021529,2]
[375737803,1753726259572,-324.492934,0.00021643,2]
[375737805,1753726259581,-324.492934,0.00021643,2]
[375737807,1753726259591,-151.0,0.00021643,2]
[375737809,1753726259599,-356.094467,0.00021643,2]
[375737810,1753726259609,-356.094467,0.00021643,2]
[375737812,1753726259619,-321.913702,0.00021643,2]
[375737814,1753726259628,-321.913702,0.00021643,2]
[375737816,1753726259637,-460.0,0.00021643,2]
[375737818,1753726259646,-460.0,0.00021643,2]
[375737820,1753726259656,-725.53,0.00021643,2]
[375737821,1753726259665,-624.72,0.00021643,2]
[375737831,1753726259675,-7756.03,0.00021643,2]
[375737833,1753726259776,-579.21818815,0.00021643,2]
[375737835,1753726259786,-1428.52,0.00021643,2]
[375737837,1753726259796,-460.0,0.00021643,2]
[375737839,1753726259805,-460.0,0.00021643,2]
[375737841,1753726259814,-460.0,0.00021643,2]
[375737843,1753726259823,-761.77,0.00021643,2]
[375737844,1753726259832,-460.0,0.00021643,2]
[375737846,1753726259841,-491.55,0.00021643,2]
[375737847,1753726259851,-460.0,0.00021643,2]
[375737849,1753726259861,-1843.09,0.00021643,2]
[375737851,1753726259871,-460.0,0.00021643,2]
[375737853,1753726259880,-716.08,0.00021643,2]
[375737855,1753726259889,-595.94,0.00021643,2]
[375737857,1753726259899,-460.0,0.00021643,2]
[375737858,1753726259911,-460.0,0.00021643,2]
[375737860,1753726259921,-460.0,0.00021643,2]
[375737862,1753726259930,-460.0,0.00021643,2]
[375737864,1753726259939,-4965.97,0.00021643,2]
[375737866,1753726259948,-617.58,0.00021643,2]
[375737868,1753726259958,-535.2,0.00021643,2]
[375737870,1753726259968,-897.76,0.00021643,2]
[375737871,1753726259977,-2047.29,0.00021643,2]
[375737873,1753726259988,-3008.21,0.00021643,2]
[375737875,1753726259997,-747.06,0.00021643,2]
[375737877,1753726260007,-617.68,0.00021643,2]
[375737879,1753726260016,-3254.09,0.00021643,2]
[375737881,1753726260026,-971.02,0.00021643,2]
[375737883,1753726260035,-1422.43,0.00021643,2]
[375737884,1753726260045,-460.0,0.00021643,2]
[375737886,1753726260054,-2471.61,0.00021643,2]
[375737888,1753726260064,-460.0,0.00021643,2]
[375737890,1753726260074,-460.0,0.00021643,2]
[375737892,1753726260083,-540.49,0.00021643,2]
[375737894,1753726260093,-197.98413322,0.00021643,2]
[375737896,1753726260103,-463.43,0.00021643,2]
[375737897,1753726260113,-473.84,0.00021643,2]
[375737899,1753726260123,-3735.85,0.00021643,2]
[375737901,1753726260132,-2049.2,0.00021643,2]
[375737903,1753726260142,-448.54898413,0.00021643,2]
[375737905,1753726260153,-460.0,0.00021643,2]
[375737907,1753726260163,-749.47,0.00021643,2]
[375737909,1753726260174,-561.15,0.00021643,2]
[375737911,1753726260184,-460.0,0.00021643,2]
[375737912,1753726260194,-570.81358966,0.00021643,2]
[375737914,1753726260203,-469.32,0.00021643,2]
[375737916,1753726260213,-483.3,0.00021643,2]
[375737918,1753726260223,-582.39,0.00021643,2]
[375737920,1753726260233,-2177.28,0.00021643,2]
[375737922,1753726260243,-940.82,0.00021643,2]
[375737924,1753726260252,-481.16,0.00021643,2]
[375737925,1753726260262,-460.0,0.00021643,2]
[375737927,1753726260272,-712.61,0.00021643,2]
[375737929,1753726260282,-580.31,0.00021643,2]
[375737931,1753726260292,-497.89,0.00021643,2]
[375737933,1753726260301,-1532.04,0.00021643,2]
[375737935,1753726260311,-476.16,0.00021643,2]
[375737936,1753726260323,-460.0,0.00021643,2]
[375737938,1753726260333,-902.89,0.00021643,2]
[375737940,1753726260342,-2112.95,0.00021643,2]
[375737942,1753726260354,-2156.68,0.00021643,2]
[375737944,1753726260364,-460.0,0.00021643,2]
[375737945,1753726260373,-151.0,0.00021644,2]
[375737947,1753726260383,-151.0,0.00021644,2]
[375737949,1753726260394,-163.35391302,0.00021644,2]
[375737951,1753726260404,-500.0,0.00021644,2]
[375737953,1753726260413,-151.0,0.00021644,2]
[375737955,1753726260423,-151.0,0.00021644,2]
[375737956,1753726260432,-151.0,0.00021644,2]
[375737958,1753726260442,-151.0,0.00021644,2]
[375737960,1753726260452,-797.0,0.00021644,2]
[375737962,1753726260463,-151.0,0.00021644,2]
[375737964,1753726260473,-231.73329908,0.00021644,2]
[375737966,1753726260483,-199.42810281,0.00021644,2]
[375737968,1753726260493,-1572.316,0.00021685,2]
[375737969,1753726260503,-178.72922438,0.00021685,2]
[375737971,1753726260513,-742.0,0.00021728,2]
[375737973,1753726260522,-742.0,0.00021771,2]
[375737975,1753726260532,-991.2,0.00021803,4]
[375737976,1753726260542,-742.0,0.00021805,2]
[375737978,1753726260553,-5041.81830741,0.00021833,2]
[375737980,1753726260565,-178.560559,0.00021835,2]
[375737982,1753726260575,-972.678,0.00021836,2]
[375737984,1753726260584,-742.0,0.00021863,2]
[375737986,1753726260594,-460.0,0.00021917,2]
[375737988,1753726260607,-460.0,0.00021917,2]
[375737990,1753726260616,-725.53,0.00021917,2]
[375737991,1753726260626,-624.72,0.00021917,2]
[375737993,1753726260635,-7756.03,0.00021917,2]
[375737995,1753726260645,-1428.52,0.00021917,2]
[375737997,1753726260663,-460.0,0.00021917,2]
[375738000,1753726260683,-460.0,0.00021917,2]
[375738002,1753726260696,-460.0,0.00021917,2]
[375738004,1753726260712,-761.77,0.00021917,2]
[375738007,1753726260731,-460.0,0.00021917,2]
[375738009,1753726260748,-491.55,0.00021917,2]
[375738012,1753726260766,-257.19,0.00021917,2]
[375738014,1753726260782,-1843.09,0.00021917,2]
[375738016,1753726260796,-460.0,0.00021917,2]
[375738019,1753726260814,-716.08,0.00021917,2]
[375738021,1753726260830,-595.94,0.00021917,2]
[375738023,1753726260843,-460.0,0.00021917,2]
[375738025,1753726260861,-460.0,0.00021917,2]
[375738028,1753726260875,-460.0,0.00021917,2]
[375738030,1753726260892,-606.87162102,0.00021917,2]
[375738032,1753726260909,-4965.97,0.00021917,2]
[375738035,1753726260928,-617.58,0.00021917,2]
[375738037,1753726260940,-897.76,0.00021917,2]
[375738039,1753726260953,-2047.29,0.00021917,2]
[375738041,1753726260967,-3008.21,0.00021917,2]
[375738043,1753726260984,-747.06,0.00021917,2]